bitfinex/quotes_ETHUSD_20220119
["timestamp","ask_amount","ask_price","bid_price","bid_amount"]
[1642578108406,5.9405,3060.3,3060.2,0.00284211]
[1642578108407,5.6432,3060.3,3060.2,0.00284211]
[1642578108608,5.6432,3060.3,3060.2,1.66420642]
[1642578109210,5.6432,3060.3,3060.2,0.00284211]
[1642578109752,5.6432,3060.3,3060.2,1.66420642]
[1642578110247,5.6432,3060.3,3060.2,4.21079479]
[1642578110447,5.6432,3060.3,3060.2,5.8721591]
[1642578111054,5.6432,3060.3,3060.2,6.41241681]
[1642578112052,5.6432,3060.3,3060.2,7.22929681]
[1642578112453,5.6432,3060.3,3060.2,9.70869264]
[1642578113105,5.6432,3060.3,3060.2,7.22929681]
[1642578113297,5.6432,3060.3,3060.2,8.69241681]
[1642578113511,5.3482,3060.3,3060.2,11.17181264]
[1642578114299,5.33737446,3060.3,3060.2,5.02767479]
[1642578114498,5.33737446,3060.3,3060.2,4.21079479]
[1642578115413,15.2879535,3061.6,3060.2,4.21079479]
[1642578115414,3.26786,3062.3,3060.4,0.85294615]
[1642578115613,3.26813,3062.5,3060.9,1.66194635]
[1642578115614,3.9751,3062.5,3060.9,1.66194635]
[1642578115808,0.8166,3062.1,3061.0,4.44095401]
[1642578116007,1.63639339,3061.7,3061.0,4.74095401]
[1642578116208,1.63639339,3061.7,3061.1,4.44095401]
[1642578116408,1.63639339,3061.7,3061.4,1.28032378]
[1642578116609,0.00738951,3062.0,3061.5,2.77900766]
[1642578117053,1.51169857,3062.2,3061.5,2.77900766]
[1642578117054,0.00682109,3061.9,3061.5,2.77900766]
[1642578117454,0.00625266,3061.8,3061.5,2.77900766]
[1642578117856,0.00568424,3061.7,3061.5,2.77900766]
[1642578118255,0.00511582,3061.6,3061.5,2.77900766]
[1642578118655,0.52334582,3062.1,3061.6,4.05]
[1642578118856,0.52334582,3062.1,3061.7,2.77900766]
[1642578119059,0.00227369,3062.0,3061.8,2.77900766]
[1642578119257,0.00227369,3062.0,3061.5,0.8166]
[1642578119458,0.00170527,3061.9,3061.6,2.7781734]
[1642578119858,0.00113684,3061.8,3061.6,2.7781734]
[1642578122728,1.39819988,3061.8,3061.6,2.7781734]
[1642578123530,1.39819988,3061.8,3061.5,1.5]
[1642578123730,1.10499988,3061.8,3061.6,2.77826081]
[1642578123930,1.10499988,3061.8,3061.6,2.77939765]
[1642578124660,1.10499988,3061.8,3061.6,0.00113684]
[1642578125060,1.10499988,3061.8,3061.6,2.77935659]
[1642578125361,1.10499988,3061.8,3061.6,0.00113684]
[1642578125568,1.63337,3062.3,3061.6,2.77934333]
[1642578125765,0.81672,3062.1,3061.6,2.77934333]
[1642578125964,0.81842527,3062.1,3061.6,2.77934333]
[1642578126767,1.18387061,3062.0,3061.6,0.00113684]
[1642578127468,3.63428061,3062.0,3061.6,0.00113684]
[1642578127668,2.00064061,3062.0,3061.6,0.00113684]
[1642578128499,2.00064061,3062.0,3061.1,2.78233963]
[1642578128500,1.40407914,3061.3,3061.1,2.78233963]
[1642578128701,2.02879,3061.9,3061.2,2.78177121]
[1642578128899,1.33429,3061.9,3061.3,2.77836067]
[1642578129100,0.51749,3061.9,3061.4,2.77836067]
[1642578129301,0.51749,3061.9,3061.5,2.77836067]
[1642578129601,0.51749,3061.9,3061.6,0.00113684]
[1642578129902,1.22606084,3061.7,3061.0,2.78290696]
[1642578130105,0.81682,3061.6,3061.1,2.77835957]
[1642578130301,0.81682,3061.6,3061.1,0.00397896]
[1642578130500,0.81682,3061.6,3061.2,0.00341054]
[1642578130706,0.81682,3061.6,3060.8,0.00568423]
[1642578130903,1.24629238,3061.1,3060.9,2.77882915]
[1642578131106,0.81682,3061.6,3061.0,4.24997179]
[1642578131107,1.81682,3061.6,3061.0,4.24997179]
[1642578131304,1.0,3061.6,3061.1,2.77882915]
[1642578131506,0.3,3061.6,3061.1,2.78280811]
[1642578131703,0.3,3061.6,3061.2,0.00341054]
[1642578131952,2.93376,3061.7,3061.2,0.00341054]
[1642578132152,2.93376,3061.7,3060.6,2.78560222]
[1642578132153,1.23767263,3061.3,3060.6,2.78560222]
[1642578132356,1.23767263,3061.3,3060.7,2.7850338]
[1642578132556,8.2254,3061.8,3061.1,1.36284415]
[1642578132755,3.9252,3061.8,3061.2,2.77878114]
[1642578132954,3.9252,3061.8,3061.2,2.78219168]
[1642578133154,3.9252,3061.8,3061.3,2.78162325]
[1642578133361,3.9252,3061.8,3061.6,1.51282511]
[1642578133556,3.9252,3061.8,3061.7,2.77825615]
[1642578133756,0.00170527,3062.1,3061.7,2.77825615]
[1642578133956,1.1561494,3062.2,3061.7,2.77825615]
[1642578134261,1.1561494,3062.2,3061.0,1.1376]
[1642578134262,1.1561494,3062.2,3061.8,0.00170527]
[1642578134655,1.1561494,3062.2,3061.1,7.25528914]
[1642578134856,1.49335492,3061.7,3061.2,2.78340462]
[1642578135061,1.49335492,3061.7,3061.3,2.77828881]
[1642578135262,1.24093685,3062.3,3061.3,2.78283619]
[1642578135464,1.81668,3062.2,3061.5,1.24942678]
[1642578135700,1.81668,3062.2,3061.6,2.77828881]
[1642578135904,1.81668,3062.2,3061.6,2.78113092]
[1642578136103,1.81668,3062.2,3061.7,0.00227369]
[1642578136302,1.55066713,3061.8,3061.7,0.00227369]
[1642578137302,0.81668,3062.2,3061.7,0.00227369]
[1642578137703,1.6334,3062.2,3061.7,0.00227369]
[1642578137904,0.81668,3062.2,3061.7,0.00227369]
[1642578138103,1.81668,3062.2,3061.7,0.00227369]
[1642578138304,0.81668,3062.2,3061.7,0.00227369]
[1642578138507,1.30363881,3062.1,3061.7,0.00227369]
[1642578138905,2.30363881,3062.1,3061.7,0.00227369]
[1642578139106,0.81677,3061.9,3061.1,2.7844226]
[1642578139363,1.63355,3061.9,3061.2,2.78385418]
[1642578139554,0.81677,3061.9,3061.3,2.77873837]
[1642578139753,0.81677,3061.9,3061.3,2.78328575]
[1642578139954,0.81677,3061.9,3061.4,2.78271733]
[1642578140153,0.81677,3061.9,3061.5,2.77873837]
[1642578140354,0.81677,3061.9,3061.5,2.78214891]
[1642578140554,0.81677,3061.9,3061.6,2.78158048]
[1642578140757,0.81677,3061.9,3061.6,0.00284211]
[1642578140959,1.82537881,3062.1,3061.7,0.00227369]
[1642578141164,1.13403685,3062.3,3061.7,2.0]
[1642578141357,0.00113685,3062.3,3061.8,2.79600342]
[1642578141557,0.00113685,3062.3,3061.9,2.77880831]
[1642578141759,1.63570191,3062.5,3062.0,2.77880831]
[1642578141958,0.13819997,3062.9,3062.0,0.00170527]
[1642578142162,1.1820821,3062.1,3061.7,2.77842759]
[1642578142559,1.1320821,3062.1,3061.8,0.00284212]
[1642578142765,1.15420527,3062.6,3061.8,0.00284212]
[1642578142766,0.00170527,3062.6,3061.8,0.00284212]
[1642578142964,0.00170527,3062.6,3061.8,3.08126971]
[1642578143212,0.00113685,3062.5,3061.9,2.77842759]
[1642578143411,0.00113685,3062.5,3061.9,3.08070128]
[1642578143611,1.4911758,3062.4,3062.0,2.78013286]
[1642578144015,1.4911758,3062.4,3062.1,2.77956444]
[1642578144213,1.1924758,3062.4,3062.2,2.77842759]
[1642578144413,1.1924758,3062.4,3062.1,0.00113685]
[1642578144815,0.00113685,3062.5,3062.0,0.8165]
[1642578145014,0.00113685,3062.5,3062.1,2.7783374]
[1642578145215,0.00113685,3062.5,3062.1,2.77947425]
[1642578145515,0.00113685,3062.5,3062.1,3.07947425]
[1642578145818,0.00113685,3062.5,3062.2,3.87444002]
[1642578146015,0.00113685,3062.5,3062.3,2.7783374]
[1642578148361,0.00113685,3062.5,3062.1,1.19123685]
[1642578148563,0.00113685,3062.5,3062.2,2.7782259]
[1642578148763,0.81770685,3062.5,3062.2,2.7782259]
[1642578148965,0.81770685,3062.5,3062.1,0.00113685]
[1642578148966,0.81770685,3062.5,3062.3,2.7782259]
[1642578149161,0.81770685,3062.5,3062.1,0.00113685]
[1642578149362,0.52060685,3062.5,3062.1,0.00113685]
[1642578149562,0.52060685,3062.5,3061.9,2.77824656]
[1642578149563,0.52060685,3062.5,3061.9,2.78052025]
[1642578149861,0.52060685,3062.5,3062.0,0.00170527]
[1642578151016,0.52060685,3062.5,3061.9,2.78082975]
[1642578151017,0.82060685,3062.5,3061.9,2.78082975]
[1642578151213,0.82060685,3062.5,3061.9,0.00227369]
[1642578151214,0.52060685,3062.5,3061.9,0.00227369]
[1642578151412,0.52060685,3062.5,3061.1,3.8638]
[1642578151413,0.82060685,3062.5,3062.0,0.00170527]
[1642578151616,0.82060685,3062.5,3061.3,2.7786296]
[1642578151812,0.81681,3062.4,3061.3,2.78431383]
[1642578152013,0.8168,3062.2,3061.4,2.78374541]
[1642578152214,0.8168,3062.2,3061.5,2.7786296]
[1642578152415,0.8168,3062.2,3061.5,2.78317699]
[1642578152616,0.8168,3062.2,3061.6,0.00397896]
[1642578152815,1.1946859,3061.7,3061.6,2.78260856]
[1642578153819,1.1946859,3061.7,3061.6,0.00397896]
[1642578153820,1.4946859,3061.7,3061.6,0.00397896]
[1642578154019,5.7946859,3061.7,3061.6,0.00397896]
[1642578154221,5.7946859,3061.7,3060.6,0.0096632]
[1642578154222,0.81703,3061.5,3060.6,0.0096632]
[1642578154457,0.52463,3061.5,3060.7,2.77914867]
[1642578154656,1.8170284,3061.6,3060.8,2.77914867]
[1642578154657,1.10715784,3060.9,3060.8,2.77914867]
[1642578154858,1.92419784,3060.9,3060.8,0.00852635]
[1642578155058,1.92419784,3060.9,3060.8,2.78767502]
[1642578155263,1.92419784,3060.9,3060.8,2.77914867]
[1642578155464,1.92419784,3060.9,3060.8,2.78767502]
[1642578155663,0.81704,3060.9,3060.8,2.78767502]
[1642578156264,1.63404,3061.1,3060.8,2.78767502]
[1642578156464,0.471,3061.4,3060.9,2.77914867]
[1642578156663,1.45391572,3061.0,3060.9,2.7871066]
[1642578156866,1.45391572,3061.0,3060.9,2.77914867]
[1642578157063,1.45391572,3061.0,3060.5,4.44109502]
[1642578157467,1.45391572,3061.0,3060.6,0.0096632]
[1642578157667,6.5324,3061.3,3060.7,1.46985422]
[1642578157870,6.5324,3061.3,3060.8,2.31132828]
[1642578158115,6.5324,3061.3,3060.9,2.77914867]
[1642578158312,6.5324,3061.3,3060.9,2.7871066]
[1642578158512,6.5324,3061.3,3061.0,2.78653818]
[1642578158713,6.5324,3061.3,3061.1,2.77914867]
[1642578158714,8.00711546,3061.3,3061.1,2.77914867]
[1642578158916,8.00711546,3061.3,3061.1,2.78596975]
[1642578159113,8.00711546,3061.3,3061.2,2.78540133]
[1642578159524,7.71251546,3061.3,3061.2,2.78540133]
[1642578163759,8.01251546,3061.3,3061.2,2.78540133]
[1642578164159,9.01251546,3061.3,3061.2,2.78540133]
[1642578164765,7.71251546,3061.3,3061.2,2.78540133]
[1642578165619,8.71251546,3061.3,3061.2,2.78540133]
[1642578166824,8.71251546,3061.3,3061.2,0.00625266]
[1642578167224,1.14482652,3060.6,3060.5,0.01023162]
[1642578167427,1.14482652,3060.6,3060.5,2.78949808]
[1642578167624,0.817,3061.0,3060.5,2.78949808]
[1642578167824,0.817,3061.0,3060.6,2.77926646]
[1642578168227,0.817,3061.0,3060.7,0.00909478]
[1642578168426,0.817,3061.0,3060.8,2.77926646]
[1642578168725,0.817,3061.0,3060.9,0.00795793]
[1642578168926,0.817,3061.0,3060.9,2.78722439]
[1642578169561,2.01231077,3061.0,3060.9,2.78722439]
[1642578169964,1.69911077,3061.0,3060.9,2.78722439]
[1642578170369,4.7712682,3061.0,3060.9,0.00795793]
[1642578170564,11.0040682,3061.0,3060.9,0.00795793]
[1642578170764,1.6343706,3060.8,3060.5,0.01023162]
[1642578170966,7.05498,3060.7,3060.6,2.77959501]
[1642578171765,7.05498,3060.7,3060.5,2.77959501]
[1642578171966,7.05498,3060.7,3060.4,4.44582932]
[1642578172165,0.81715,3060.6,3060.5,2.77969738]
[1642578172368,0.81715,3060.6,3060.5,2.789929]
[1642578172669,1.81715,3060.6,3060.5,2.789929]
[1642578173103,0.81715,3060.6,3060.5,2.789929]
[1642578173304,7.05498,3060.7,3060.5,2.789929]
[1642578173508,7.05498,3060.7,3060.6,2.77969738]
[1642578173708,7.05498,3060.7,3060.6,2.78936058]
[1642578174112,6.2378,3060.7,3060.6,2.78936058]
[1642578175108,5.9404,3060.7,3060.6,2.78936058]
[1642578175511,5.9404,3060.7,3060.6,4.0593051]
[1642578176013,5.9404,3060.7,3060.6,2.78936058]
[1642578178266,6.9404,3060.7,3060.6,0.0096632]
[1642578178468,6.5173,3060.6,3060.4,4.44582932]
[1642578178667,7.9883,3060.6,3060.4,4.44582932]
[1642578178866,7.3218183,3060.5,3060.4,4.44582932]
[1642578179065,8.3218183,3060.5,3060.4,4.44582932]
[1642578179267,8.6218183,3060.5,3060.4,4.44696617]
[1642578179464,8.3218183,3060.5,3060.4,4.44696617]
[1642578179667,8.7928183,3060.5,3060.4,4.44696617]
[1642578180370,8.4945183,3060.5,3060.4,4.44696617]
[1642578180814,7.4945183,3060.5,3060.4,4.44696617]
[1642578181015,10.50892752,3060.5,3060.4,4.44696617]
[1642578181215,0.470651,3060.4,3059.3,1.66194635]
[1642578181523,0.81759,3060.0,3059.4,2.78582288]
[1642578181713,0.471,3059.9,3059.5,2.78013865]
[1642578181911,6.1131,3059.9,3059.5,2.78525446]
[1642578182116,1.0,3059.8,3059.6,2.78468603]
[1642578182314,8.9631,3059.7,3059.6,0.00454738]
[1642578182514,0.81759,3059.6,3059.1,0.6]
[1642578182718,1.28859,3059.6,3059.2,2.78048189]
[1642578183021,6.2421,3059.5,3059.3,0.00625265]
[1642578183215,7.521,3059.4,3059.1,0.6]
[1642578183414,5.6421,3059.3,3059.1,0.6]
[1642578183714,6.671,3059.2,3059.1,0.0001]
[1642578183916,14.3690593,3059.2,3059.1,0.0001]
[1642578184113,14.3690593,3059.2,3059.1,0.00123685]
[1642578184362,12.3131,3059.2,3059.1,0.00123685]
[1642578184959,7.1131,3059.2,3059.1,0.00123685]
[1642578185361,6.8182,3059.2,3059.1,0.00123685]
[1642578186963,8.86854532,3059.2,3059.1,0.00123685]
[1642578187969,6.8182,3059.2,3059.1,0.00123685]
[1642578188236,6.1131,3059.2,3059.1,0.00123685]
[1642578188418,7.1131,3059.2,3059.1,0.00123685]
[1642578188619,6.1131,3059.2,3059.1,0.00123685]
[1642578189021,5.6421,3059.2,3059.1,0.00123685]
[1642578190424,5.3475,3059.2,3059.1,0.00123685]
[1642578191427,5.3475,3059.2,3059.1,2.78166941]
[1642578191629,5.3475,3059.2,3059.1,0.00123685]
[1642578193759,5.3475,3059.2,3059.1,2.78166941]
[1642578194160,5.3475,3059.2,3059.1,0.00123685]
[1642578195609,5.0513,3059.2,3059.1,0.00123685]
[1642578196017,5.0513,3059.2,3059.1,2.78166941]
[1642578196213,5.0513,3059.2,3059.1,0.00123685]
[1642578197917,5.55,3059.1,3058.6,1.50599841]
[1642578198117,0.81759,3058.9,3058.6,1.50599841]
[1642578198317,2.16414523,3058.8,3058.7,0.00227369]
[1642578198521,5.0513,3058.8,3058.7,0.00227369]
[1642578198818,5.0513,3058.8,3058.1,0.00568424]
[1642578199016,1.11293205,3058.4,3058.1,0.00568424]
[1642578199218,0.81774,3058.3,3058.1,0.00568424]
[1642578199457,1.11293205,3058.4,3058.3,1.63547999]
[1642578199857,1.11293205,3058.4,3058.3,1.64002738]
[1642578200356,0.81774,3058.5,3058.3,1.64002738]
[1642578200558,8.32226,3058.8,3058.3,1.64002738]
[1642578200559,0.52506,3058.6,3058.3,1.64002738]
[1642578200761,0.52506,3058.6,3058.4,0.00397897]
[1642578200964,5.0513,3058.8,3058.4,0.00397897]
[1642578201565,7.04408326,3058.8,3058.4,0.00397897]
[1642578202067,1.0,3058.7,3058.4,0.00397897]
[1642578202265,7.29343836,3058.6,3058.4,0.00397897]
[1642578202465,2.10859896,3058.5,3058.4,0.00397897]
[1642578202664,8.15989896,3058.5,3058.4,0.00397897]
[1642578202964,5.0513,3058.5,3058.4,0.00397897]
[1642578203408,6.0513,3058.5,3058.4,0.00397897]
[1642578203712,6.86907,3058.5,3058.4,0.59007074]
[1642578204908,5.86907,3058.5,3058.4,0.59007074]
[1642578205110,5.0513,3058.5,3058.4,0.59007074]
[1642578205711,4.7571,3058.5,3058.4,0.59007074]
[1642578206875,4.7571,3058.5,3058.4,2.58403417]
[1642578207066,4.7571,3058.5,3058.4,2.77779364]
[1642578207264,4.7571,3058.5,3058.4,2.74060397]
[1642578207464,4.7571,3058.5,3058.4,0.74007074]
[1642578207665,4.7571,3058.5,3058.4,0.59007074]
[1642578208466,5.7571,3058.5,3058.4,0.59007074]
[1642578209268,6.57479,3058.5,3058.4,0.59007074]
[1642578210615,7.17479,3058.5,3058.4,0.59007074]
[1642578210816,8.68588,3058.4,3058.3,1.63547999]
[1642578211015,14.91398,3058.4,3058.3,1.63547999]
[1642578211618,14.91398,3058.4,3057.3,6.96914632]
[1642578211818,1.22154484,3057.4,3057.3,5.169]
[1642578212014,1.22154484,3057.4,3057.0,5.66679846]
[1642578212015,1.22154484,3057.4,3057.0,1.72829846]
[1642578212215,1.81803,3057.9,3057.1,1.66194635]
[1642578212216,1.0,3057.9,3057.1,1.66194635]
[1642578212420,1.0,3057.9,3057.1,0.0073895]
[1642578212421,0.01255332,3057.3,3057.1,0.0073895]
[1642578212617,7.521,3057.2,3056.6,0.02292395]
[1642578212816,0.8183,3057.0,3056.6,0.02292395]
[1642578213015,4.7571,3056.9,3056.7,0.00227369]
[1642578213420,4.7571,3056.9,3056.2,2.03024594]
[1642578213421,7.05,3056.3,3054.5,0.57655603]
[1642578213627,5.886,3055.4,3054.0,13.35738332]
[1642578213823,6.70469,3055.1,3053.2,4.57744311]
[1642578214021,5.886,3053.4,3053.2,3.30099419]
[1642578214225,6.357,3053.3,3052.9,1.606761]
[1642578214469,6.5507,3053.2,3053.0,2.0]
[1642578214668,6.3506,3053.2,3052.5,0.16312]
[1642578214869,3.27739,3054.9,3053.2,3.5]
[1642578214870,0.471,3053.9,3053.2,3.5]
[1642578215066,1.638,3054.0,3053.3,2.0]
[1642578215267,3.5,3054.8,3053.3,2.0]
[1642578215268,3.5,3054.8,3053.9,4.11245641]
[1642578215465,0.471,3055.1,3054.6,1.49867567]
[1642578215669,0.00284212,3055.3,3054.7,1.22426153]
[1642578215869,0.00284212,3055.3,3054.7,3.01231306]
[1642578215870,6.5471,3054.8,3054.7,3.01231306]
[1642578216074,6.5471,3054.8,3054.7,3.66231306]
[1642578216075,0.0001,3054.8,3054.7,3.66231306]
[1642578216370,0.0001,3054.8,3054.7,0.01231306]
[1642578216670,0.0001,3054.8,3054.5,0.01257943]
[1642578217069,0.0001,3054.8,3054.6,0.00397897]
[1642578217469,0.0001,3054.8,3054.5,0.00454739]
[1642578217671,0.0001,3054.8,3054.6,1.1659268]
[1642578218113,0.0001,3054.8,3054.7,2.78757878]
[1642578218513,0.0001,3054.8,3054.7,0.00341054]
[1642578218911,0.0001,3054.8,3054.5,0.00454739]
[1642578219312,0.0001,3054.8,3054.5,1.29344257]
[1642578219518,0.0001,3054.8,3054.6,1.44168177]
[1642578219712,0.0001,3054.8,3054.5,1.28889518]
[1642578219911,0.0001,3054.8,3054.7,0.00341054]
[1642578220311,3.4001,3054.8,3054.7,0.00341054]
[1642578220718,0.0001,3054.8,3054.7,0.00341054]
[1642578220916,0.52687,3055.2,3054.7,0.00341054]
[1642578221117,6.5468,3055.1,3054.7,0.00341054]
[1642578221518,6.5468,3055.1,3054.9,1.26262629]
[1642578221720,6.5468,3055.1,3055.0,1.34766728]
[1642578221963,6.5468,3055.1,3055.0,1.34937255]
[1642578225918,6.5468,3055.1,3055.0,1.64937255]
[1642578226114,6.5468,3055.1,3055.0,1.34937255]
[1642578226115,6.2443,3055.1,3055.0,1.34937255]
[1642578226815,6.2443,3055.1,3055.0,0.00170527]
[1642578227016,6.243425,3055.1,3055.0,0.00170527]
[1642578227217,6.243425,3055.1,3054.2,0.00625266]
[1642578227416,6.243425,3055.1,3053.7,2.78440473]
[1642578227417,6.543425,3055.1,3053.7,0.00909478]
[1642578227618,0.8189,3054.7,3053.8,0.00852635]
[1642578227815,0.8189,3054.7,3053.7,1.33661884]
[1642578227816,0.8189,3054.7,3054.6,1.42839672]
[1642578228012,8.362325,3054.7,3054.6,1.42839672]
[1642578228215,8.662325,3054.7,3053.8,0.00852635]
[1642578228415,8.362325,3054.7,3053.8,0.00852635]
[1642578228617,8.881175,3054.7,3053.8,0.00852635]
[1642578229013,10.506675,3054.7,3053.8,0.00852635]
[1642578229216,0.00849997,3054.6,3053.8,0.00852635]
[1642578229468,10.206675,3054.7,3054.5,1.25617313]
[1642578230672,7.351525,3054.7,3054.5,1.25617313]
[1642578231272,7.054425,3054.7,3054.5,1.25617313]
[1642578231773,0.3391,3055.2,3054.5,1.25617313]
[1642578231974,0.3391,3055.2,3054.5,1.55617313]
[1642578232172,0.3391,3055.2,3055.1,1.20839711]
[1642578232573,0.3391,3055.2,3055.1,1.20953396]
[1642578235219,2.19007172,3056.2,3055.1,1.20953396]
[1642578235419,2.56080667,3056.7,3056.4,1.33684129]
[1642578235618,6.5433,3056.6,3056.4,1.33684129]
[1642578236214,6.5433,3056.6,3055.2,10.7548]
[1642578236215,6.5433,3056.6,3056.5,1.11094888]
[1642578236414,6.2457,3056.6,3056.5,1.11094888]
[1642578236613,6.2530895,3056.6,3056.5,1.11094888]
[1642578238864,6.2530895,3056.6,3056.5,2.33314367]
[1642578239263,6.2530895,3056.6,3056.5,2.63314367]
[1642578239866,5.13827572,3058.1,3056.6,6.6]
[1642578240069,5.13827572,3058.1,3056.7,0.08176695]
[1642578240070,2.0,3058.0,3056.7,0.08176695]
[1642578240273,0.00454739,3057.4,3056.6,6.6]
[1642578240466,0.00454739,3057.4,3056.6,6.9]
[1642578240720,0.00397897,3057.3,3056.6,6.9]
[1642578241124,0.00341054,3057.2,3056.6,6.9]
[1642578241323,1.00341054,3057.2,3056.5,1.11094888]
[1642578241525,0.62074407,3057.2,3056.5,1.11094888]
[1642578241722,0.62074407,3057.2,3056.6,0.00341054]
[1642578242321,0.81796,3057.9,3057.1,1.2322297]
[1642578242522,2.71915213,3058.3,3057.6,1.35315808]
[1642578242724,0.00284212,3057.7,3057.6,1.35315808]
[1642578243324,0.00284212,3057.7,3057.6,2.78970179]
[1642578244780,0.00284212,3057.7,3056.7,1.2217]
[1642578244979,1.0,3057.5,3056.7,1.2217]
[1642578245179,1.0,3057.5,3056.8,0.00227369]
[1642578245383,0.8310683,3057.3,3056.8,0.00227369]
[1642578245584,2.37650727,3057.2,3056.4,0.00454738]
[1642578245783,2.37650727,3057.2,3055.6,5.27072]
[1642578245784,2.37650727,3057.2,3056.5,1.27109837]
[1642578245984,0.0129783,3057.3,3056.1,0.00625266]
[1642578246182,0.0129783,3057.3,3055.6,5.27072]
[1642578246183,19.1329783,3057.3,3056.6,0.00341054]
[1642578246383,0.0162901,3057.1,3056.1,0.00625266]
[1642578246586,1.0,3056.9,3056.1,0.00625266]
[1642578246789,0.01955998,3056.7,3056.1,0.00625266]
[1642578246983,1.8183,3056.9,3056.1,1.33000361]
[1642578247185,2.24706342,3056.8,3056.1,0.00625266]
[1642578247387,2.24706342,3056.8,3056.2,0.00568423]
[1642578247585,6.5403,3056.7,3055.7,0.00852635]
[1642578247786,0.81837,3056.3,3055.7,0.00852635]
[1642578247986,2.02582159,3056.2,3055.7,0.00852635]
[1642578248222,2.07575757,3056.2,3055.7,1.29456466]
[1642578248415,0.81837,3056.3,3055.7,1.28603831]
[1642578248616,0.81837,3056.3,3056.0,1.48139982]
[1642578249016,6.5403,3056.7,3056.1,0.00625266]
[1642578249419,2.05506607,3056.6,3056.2,1.21214248]
[1642578249617,6.5403,3056.5,3056.2,1.21214248]
[1642578249816,6.5403,3056.5,3056.3,0.00511581]
[1642578251322,6.5403,3056.5,3056.2,1.18277385]
[1642578251872,6.242,3056.5,3056.2,1.18277385]
[1642578253068,0.00113685,3057.4,3056.4,7.05]
[1642578253269,0.00113685,3057.4,3057.1,1.35285222]
[1642578253461,1.63853563,3057.7,3057.1,1.35285222]
[1642578253462,1.63853563,3057.7,3057.2,0.07718641]
[1642578253661,0.471,3057.9,3057.4,1.25112931]
[1642578253861,0.00738951,3057.6,3057.4,1.25112931]
[1642578254266,0.00682108,3057.5,3057.4,1.55112931]
[1642578254465,0.00682108,3057.5,3057.4,1.85112931]
[1642578255719,0.00682108,3057.5,3057.4,1.25112931]
[1642578256023,0.01259154,3058.6,3057.1,1.35285222]
[1642578256217,0.01259154,3058.6,3056.6,2.4638]
[1642578256218,0.81795,3057.7,3056.6,2.4638]
[1642578256420,0.81795,3057.7,3057.2,0.00170527]
[1642578256624,0.81795,3057.7,3056.0,4.1752391]
[1642578256625,0.01269416,3057.3,3056.1,2.78284725]
[1642578256824,1.28378045,3057.0,3056.1,0.00625266]
[1642578257020,1.0,3056.7,3056.1,0.00625266]
[1642578257220,22.24106933,3056.6,3055.9,0.0073895]
[1642578257423,22.24106933,3056.6,3054.9,0.13819997]
[1642578257424,18.83739416,3056.4,3054.9,0.13819997]
[1642578257626,1.0,3055.2,3055.0,2.35042346]
[1642578257823,2.144727,3055.1,3054.2,0.130951]
[1642578258022,5.15,3055.0,3053.9,1.63174223]
[1642578258221,5.15,3055.0,3054.3,0.00397897]
[1642578258222,0.8188598,3054.8,3054.3,0.00397897]
[1642578258421,0.471,3054.7,3054.3,0.00397897]
[1642578258630,6.5405,3054.6,3053.9,1.63799489]
[1642578258824,6.5405,3054.6,3054.0,0.00568424]
[1642578259224,6.5405,3054.6,3054.0,1.63742647]
[1642578259509,6.5405,3054.6,3054.4,1.63174223]
[1642578259687,0.263,3055.1,3054.6,5.93911002]
[1642578260086,0.263,3055.1,3054.7,0.00170527]
[1642578260285,0.263,3055.1,3054.7,1.25418264]
[1642578260484,0.263,3055.1,3055.0,1.22967588]
[1642578261094,2.10316721,3056.3,3055.0,1.22967588]
[1642578261095,0.47327369,3056.3,3055.0,1.52967588]
[1642578261301,6.5452,3056.2,3055.0,2.86141811]
[1642578261495,6.55202108,3056.2,3055.2,1.37726298]
[1642578261693,0.00625265,3056.1,3055.2,1.37726298]
[1642578261892,6.25815265,3056.2,3055.3,7.05]
[1642578262191,6.25815265,3056.2,3055.5,1.46813808]
[1642578262391,6.25815265,3056.2,3056.1,1.46001399]
[1642578262997,0.471,3057.1,3056.1,1.46001399]
[1642578262998,3.7493,3057.3,3056.2,8.42267576]
[1642578263221,4.005692,3057.8,3057.1,1.54217456]
[1642578263418,0.0022737,3056.5,3056.2,8.56087573]
[1642578263824,0.00170528,3056.4,3056.2,8.56087573]
[1642578264322,0.00113685,3056.3,3056.2,9.69991678]
[1642578264521,0.81747207,3057.3,3057.0,1.23885822]
[1642578264920,0.00511581,3057.2,3057.0,1.23885822]
[1642578265120,0.00511581,3057.2,3056.3,5.75]
[1642578265421,0.00454739,3057.1,3056.3,5.75]
[1642578265921,1.63613,3057.5,3056.3,6.05]
[1642578265922,0.00397897,3057.0,3056.3,6.05]
[1642578266123,0.00397897,3057.0,3056.5,1.26034825]
[1642578266327,0.00341054,3056.9,3056.5,1.26034825]
[1642578266722,0.00284212,3056.8,3056.7,1.44457726]
[1642578266969,1.34637212,3057.5,3056.7,1.44457726]
[1642578267169,0.81806,3057.4,3056.7,1.44457726]
[1642578267369,2.91170722,3057.4,3056.7,1.44457726]
[1642578267569,1.0,3057.3,3056.5,1.26034825]
[1642578267770,0.8181,3057.1,3056.2,0.13819997]
[1642578267976,0.8181,3057.1,3056.6,0.00113685]
[1642578267977,2.86244579,3057.0,3056.6,0.00113685]
[1642578268178,2.86244579,3057.0,3056.3,0.00284212]
[1642578268179,3.68176264,3057.0,3056.3,0.00284212]
[1642578268374,6.9361,3056.9,3056.3,0.00284212]
[1642578268572,3.99043442,3056.8,3055.2,0.00909478]
[1642578268776,1.63685,3056.4,3055.2,0.00909478]
[1642578268980,2.49013299,3056.3,3055.2,0.00909478]
[1642578269178,1.0,3056.0,3055.2,0.00909478]
[1642578269377,9.05499464,3055.9,3055.2,0.00909478]
[1642578269774,9.87354844,3055.9,3055.2,0.00909478]
[1642578269977,9.87354844,3055.9,3055.3,1.45550455]
[1642578269978,0.81863,3055.7,3055.3,1.45550455]
[1642578270377,6.5431,3055.6,3055.4,0.00795793]
[1642578270832,6.5431,3055.6,3055.5,1.54293473]
[1642578271232,6.5431,3055.6,3055.5,1.55032424]
[1642578271637,6.5431,3055.6,3055.5,0.00738951]
[1642578272032,6.5431,3055.6,3055.1,0.358]
[1642578272033,6.2488,3055.6,3055.4,0.00795793]
[1642578272433,6.2488,3055.6,3055.2,0.00909478]
[1642578272635,2.03854585,3055.5,3055.2,0.00909478]
[1642578272839,1.11855,3055.4,3055.2,0.00909478]
[1642578273041,7.7516317,3055.3,3055.2,0.00909478]
[1642578273435,0.81855,3055.4,3055.2,0.00909478]
[1642578273637,7.05,3055.2,3054.6,5.93911002]